fUSD/lending_fUSD_20260321
["ID","MTS","AMOUNT","RATE_DAILY","PERIOD"]
[408666978,1774097438410,-300.0,0.00013432,2]
[408666979,1774097438419,-300.0,0.00013432,2]
[408666980,1774097438428,-300.0,0.00013432,2]
[408666981,1774097438438,-1056.78784769,0.00013434,2]
[408666982,1774097438461,-644.61122412,0.00013434,2]
[408667104,1774097440487,-665.15092819,0.00013434,2]
[408667106,1774097440497,-165.15,0.00013563,2]
[408667109,1774097440507,-2744.21144634,0.00013582,2]
[408667111,1774097440517,-150.0,0.00013591,2]
[408667113,1774097440527,-437.76,0.00013592,2]
[408667115,1774097440537,-9999.99,0.00013592,2]
[408667118,1774097440547,-1478.87,0.00013592,2]
[408667120,1774097440556,-499.99,0.00013592,2]
[408667122,1774097440566,-19999.99,0.00013592,2]
[408667124,1774097440575,-299.99,0.00013621,2]
[408667125,1774097440585,-4999.99,0.00013621,2]
[408667126,1774097440595,-9999.99,0.00013621,2]
[408667127,1774097440604,-1834.29,0.00013622,2]
[408667128,1774097440615,-9999.99,0.00013622,2]
[408667129,1774097440626,-999.99,0.00013622,2]
[408667130,1774097440636,-9999.99,0.00013622,2]
[408667131,1774097440645,-150.99,0.00013622,2]
[408667132,1774097440655,-9999.99,0.00013622,2]
[408667133,1774097440874,-272.66,0.00013699,2]
[408667134,1774097440884,-200.0,0.00013699,2]
[408667135,1774097440895,-2000.0,0.00013777,2]
[408667136,1774097440905,-200.0,0.00013828,2]
[408667137,1774097440914,-1000.0,0.00013887,2]
[408667138,1774097440924,-208.25,0.00013993,2]
[408667139,1774097440934,-500.0,0.0001412,2]
[408667140,1774097440943,-876.04258582,0.00014173,2]
[408667141,1774097440954,-160.40849146,0.00014237,2]
[408667142,1774097440963,-500.0,0.00014247,2]
[408667143,1774097440973,-1545.04,0.00014274,2]
[408667144,1774097440983,-5000.0,0.00014337,2]
[408667145,1774097440992,-5000.0,0.00014337,2]
[408667146,1774097441001,-194.24944797,0.00014337,2]
[408667147,1774097441012,-5000.0,0.00014337,2]
[408667148,1774097441023,-390.46916564,0.00014337,2]
[408667149,1774097441032,-500.0,0.00014356,2]
[408667150,1774097441042,-500.0,0.00014356,2]
[408667151,1774097441051,-500.0,0.00014356,2]
[408667152,1774097441061,-500.0,0.00014356,2]
[408667153,1774097441070,-272.66,0.00014384,2]
[408667154,1774097441079,-250.0,0.0001441,2]
[408667155,1774097441089,-193.0,0.0001441,2]
[408667156,1774097441098,-165.15,0.00014411,2]
[408667157,1774097441109,-2191.92962496,0.00014465,2]
[408667158,1774097441118,-153.20543491,0.00014471,2]
[408667159,1774097441128,-420.0,0.00014472,2]
[408667160,1774097441139,-1680.0,0.00014518,2]
[408667161,1774097441149,-1545.04,0.00014548,2]
[408667162,1774097441162,-500.0,0.00014564,2]
[408667163,1774097441171,-500.0,0.00014564,2]
[408667164,1774097441180,-174.14064149,0.00014564,2]
[408667165,1774097441191,-500.0,0.00014564,2]
[408667166,1774097441200,-644.32400424,0.00014564,2]
[408667167,1774097441209,-500.0,0.00014564,2]
[408667168,1774097441219,-500.0,0.00014564,2]
[408667169,1774097441229,-500.0,0.00014564,2]
[408667170,1774097441239,-452.06142144,0.00014564,2]
[408667171,1774097441248,-500.0,0.00014564,2]
[408667172,1774097441258,-500.0,0.00014564,2]
[408667173,1774097441267,-179.42795835,0.00014564,2]
[408667174,1774097441276,-220.65319568,0.00014564,2]
[408667175,1774097441286,-209.94,0.00014571,2]
[408667176,1774097441295,-500.0,0.0001463,2]
[408667177,1774097441305,-255.0,0.00014705,2]
[408667178,1774097441314,-300.0,0.00014724,2]
[408667179,1774097441323,-500.0,0.00014773,2]
[408667180,1774097441333,-500.0,0.00014773,2]
[408667181,1774097441342,-500.0,0.00014773,2]
[408667182,1774097441351,-500.0,0.00014773,2]
[408667183,1774097441361,-500.0,0.00014773,2]
[408667184,1774097441371,-1545.04,0.00014822,2]
[408667185,1774097441380,-153.20543488,0.00014828,2]
[408667186,1774097441390,-239.24966549,0.00014837,2]
[408667187,1774097441399,-1000.0,0.000149,2]
[408667188,1774097441409,-500.0,0.00014904,2]
[408667189,1774097441418,-318.21033924,0.00014943,2]
[408667190,1774097441427,-515.99986652,0.00015002,5]
[408667191,1774097441437,-272.66,0.00015068,2]
[408667192,1774097441446,-1545.04,0.00015096,2]
[408667193,1774097441455,-500.0,0.00015178,2]
[408667194,1774097441464,-153.20543488,0.00015186,2]
[408667195,1774097441474,-9211.34798985,0.00015199,2]
[408667196,1774097441484,-500.0,0.00015199,2]
[408667197,1774097441493,-500.0,0.00015199,2]
[408667198,1774097441503,-500.0,0.00015199,2]
[408667199,1774097441512,-500.0,0.00015199,2]
[408667200,1774097441521,-500.0,0.00015199,2]
[408667201,1774097441530,-500.0,0.00015199,2]
[408667202,1774097441542,-500.0,0.00015199,2]
[408667203,1774097441551,-284.4960069,0.00015199,2]
[408667204,1774097441561,-151.0,0.00015199,2]
[408667205,1774097441570,-9552.16786547,0.00015254,2]
[408667206,1774097441579,-165.15,0.00015259,2]
[408667207,1774097441588,-683.57280216,0.00015309,2]
[408667208,1774097441597,-1000.0,0.00015321,2]
[408667209,1774097441606,-1000.0,0.00015321,2]
[408667210,1774097441619,-1000.0,0.00015321,2]
[408667211,1774097441628,-758.48613474,0.00015321,2]
[408667212,1774097441638,-1000.0,0.00015321,2]
[408667213,1774097441647,-716.0,0.00015326,2]
[408667214,1774097441657,-1545.04,0.0001537,2]
[408667215,1774097441667,-716.0,0.00015408,2]
[408667216,1774097441676,-500.0,0.00015452,2]
[408667217,1774097441685,-2000.0,0.000155,2]
[408667218,1774097441697,-153.20543488,0.00015543,2]
[408667219,1774097441706,-1545.04,0.00015644,2]
[408667220,1774097441715,-458.902518,0.0001568,7]
[408667221,1774097441724,-979.16666667,0.00015712,2]
[408667222,1774097441733,-500.0,0.00015726,2]
[408667223,1774097441743,-272.66,0.00015753,2]
[408667224,1774097441752,-1000.0,0.00015782,2]
[408667225,1774097441761,-168.0,0.00015797,2]
[408667226,1774097441771,-192.774,0.000158,2]
[408667227,1774097441780,-1773.068,0.000158,2]
[408667228,1774097441790,-587.0,0.00015868,2]
[408667229,1774097441799,-502.29104034,0.00015868,2]
[408667230,1774097441808,-746.73750529,0.00015868,2]
[408667231,1774097441817,-1500.0,0.00015868,2]
[408667232,1774097441826,-1500.0,0.00015868,2]
[408667233,1774097441835,-1000.0,0.00015872,2]
[408667234,1774097441844,-160.40849146,0.000159,2]
[408667235,1774097441853,-153.20543488,0.000159,2]
[408667236,1774097441862,-366.4469759,0.000159,2]
[408667237,1774097441871,-348.1590763,0.000159,2]
[408667238,1774097441880,-1754.0,0.000159,5]
[408667239,1774097441889,-1395.0,0.000159,5]
[408667240,1774097441899,-1000.0,0.00015906,2]
[408667241,1774097441907,-306.0,0.00015915,2]
[408667242,1774097441917,-1545.04,0.00015918,2]
[408667243,1774097441925,-4287.5693517,0.00015961,2]
[408667244,1774097441938,-2295.1743568,0.00015961,2]
[408667245,1774097441947,-62715.2426605,0.00015961,2]
[408667246,1774097441956,-2168.2979973,0.00015961,2]
[408667247,1774097441965,-15067.8154288,0.00015961,2]
[408667248,1774097441974,-166315.5703245,0.00015961,2]
[408667249,1774097441983,-2351.0,0.0001597,2]
[408667250,1774097441992,-500.0,0.00015973,2]
[408667251,1774097442002,-500.0,0.00015973,2]
[408667252,1774097442012,-1384424.30670154,0.00016,2]
[408667253,1774097442022,-45814.18166056,0.00016,2]
[408667254,1774097442031,-500.000001,0.00016,2]
[408667255,1774097442041,-2079492.67639245,0.00016,2]
[408667256,1774097442275,-5523.86793438,0.00016,2]
[408667257,1774097442286,-789.47421459,0.00016,2]
[408667258,1774097442297,-448.13622011,0.00016,2]
[408667259,1774097442331,-98904.26852466,0.00016,2]
[408667260,1774097442343,-3247.20339182,0.00016,2]
[408667261,1774097442355,-10211.22949497,0.00016,2]
[408667262,1774097442381,-49519.37865716,0.00016,2]
[408667263,1774097442396,-570.54789703,0.00016,2]
[408667264,1774097442407,-1558.81911971,0.00016,2]
[408667265,1774097442418,-281.649,0.00016,2]
[408667281,1774097443293,-104.46558358,0.00016,2]
[408667282,1774097443305,-25582.58724032,0.00016,2]
[408667289,1774097446183,-56758.16580297,0.00016,2]
[408667290,1774097446241,-222684.70811758,0.00016,2]
[408667291,1774097446252,-116365.000001,0.00016,2]
[408667292,1774097446351,-10074.75413197,0.00016,2]
[408667621,1774098465385,-169.51,9.937e-05,2]
[408667622,1774098465413,-250.0,9.953e-05,2]
[408667623,1774098465443,-300.0,9.999e-05,2]
[408667624,1774098465465,-1200.0,9.999e-05,2]
[408667625,1774098465487,-300.0,9.999e-05,2]
[408667626,1774098465509,-300.0,9.999e-05,2]
[408667627,1774098465535,-300.0,9.999e-05,2]
[408667628,1774098465556,-200.54527315,9.999e-05,2]
[408667629,1774098465580,-36734.0,0.0001,2]
[408667630,1774098465604,-321.85767119,0.00010055,2]
[408667631,1774098465626,-5533.0,0.000103,3]
[408667632,1774098465648,-235.0,0.000104,2]
[408667633,1774098465670,-150.0,0.00010499,2]
[408667634,1774098465693,-5533.0,0.000105,5]
[408667635,1774098465715,-250.0,0.00010931,2]
[408667636,1774098465738,-1680.0,0.00010999,2]
[408667637,1774098465764,-300.0,0.00010999,2]
[408667638,1774098465787,-420.0,0.00010999,2]
[408667639,1774098465809,-182.04,0.00011507,2]
[408667640,1774098465832,-255.0,0.00011528,2]
[408667641,1774098465857,-250.0,0.00011696,2]
[408667642,1774098465880,-3904.39,0.0001192,2]
[408667643,1774098465905,-1852.42,0.00012046,2]
[408667644,1774098465927,-2351.0,0.00012099,2]
[408667645,1774098465950,-587.0,0.00012099,2]
[408667646,1774098465980,-3115.34,0.00012452,2]
[408667647,1774098466016,-6274.72,0.00012893,2]
[408667648,1774098466039,-167.96,0.00013003,2]
[408667649,1774098466060,-10000.0,0.00013059,2]
[408667650,1774098466082,-10642.99,0.00013059,2]
[408667651,1774098466104,-500.0,0.00013089,2]
[408667652,1774098466126,-503.0,0.00013111,2]
[408667653,1774098466357,-150.0,0.00013137,2]
[408667654,1774098466382,-150.0,0.00013308,2]
[408667655,1774098466406,-1181.0,0.00013309,2]
[408667656,1774098466428,-2500.0,0.00013421,2]
[408667657,1774098466453,-1497.78447331,0.00013473,2]
[408667658,1774098466477,-500.0,0.00013513,2]
[408667659,1774098466500,-500.0,0.00013513,2]
[408667660,1774098466524,-500.0,0.00013513,2]
[408667661,1774098466546,-500.0,0.00013513,2]
[408667662,1774098466567,-500.0,0.00013513,2]
[408667663,1774098466590,-500.0,0.00013513,2]
[408667664,1774098466612,-500.0,0.00013513,2]
[408667665,1774098466633,-500.0,0.00013513,2]
[408667666,1774098466655,-151.0,0.00013513,2]
[408667667,1774098466677,-200.0,0.00013513,2]
[408667668,1774098466699,-151.0,0.00013513,2]
[408667669,1774098466722,-151.0,0.00013513,2]
[408667670,1774098466743,-151.0,0.00013513,2]
[408667671,1774098466764,-151.0,0.00013513,2]
[408667672,1774098466796,-151.0,0.00013513,2]
[408667673,1774098466822,-151.0,0.00013513,2]
[408667674,1774098466845,-151.0,0.00013513,2]
[408667675,1774098466868,-151.0,0.00013513,2]
[408667676,1774098466892,-151.0,0.00013513,2]
[408667677,1774098466915,-151.0,0.00013513,2]
[408667678,1774098466939,-151.0,0.00013513,2]
[408667679,1774098466963,-151.0,0.00013513,2]
[408667680,1774098466988,-151.0,0.00013513,2]
[408667681,1774098467011,-151.0,0.00013513,2]
[408667682,1774098467035,-151.0,0.00013513,2]
[408667683,1774098467057,-151.0,0.00013513,2]
[408667684,1774098467080,-184.03825259,0.00013513,2]
[408667685,1774098467103,-151.0,0.00013513,2]
[408667686,1774098467127,-8277.47427792,0.00013521,2]
[408667688,1774098506566,-176.25498991,9.953e-05,2]
[408667689,1774098506588,-2500.0,0.00013421,2]
[408667690,1774098506613,-165067.74501009,0.00013521,2]
[408667691,1774098552135,-292.17260622,0.00013447,2]
[408667692,1774098552157,-65068.46973378,0.00013521,2]
[408667693,1774098557128,-7110.625592,0.00013521,2]
[408667694,1774098559134,-26897.86648621,0.00013521,2]
[408667695,1774098559154,-4770.01579799,0.00013547,2]
[408667696,1774098559174,-500.0,0.00013644,2]
[408667697,1774098559194,-292.17260618,0.0001372,2]
[408667698,1774098559214,-770.92240188,0.00013743,2]
[408667699,1774098631490,-279.79428379,0.00013743,2]
[408667700,1774098631595,-447.06778756,0.00013743,2]
[408667701,1774098631606,-263.0,0.00013743,2]
[408667702,1774098631616,-1848.66,0.00013905,2]
[408667703,1774098631626,-292.17260618,0.00013992,2]
[408667704,1774098631637,-1497.78447323,0.00014012,2]
[408667705,1774098631647,-292.17260618,0.00014265,2]
[408667706,1774098631656,-1497.78447323,0.00014282,2]
[408667707,1774098631666,-547.98081135,0.00014356,2]
[408667708,1774098631676,-500.0,0.00014356,2]
[408667709,1774098631685,-500.0,0.00014356,2]
[408667710,1774098631695,-292.17260618,0.00014537,2]
[408667712,1774098631704,-1497.78447323,0.00014552,2]
[408667713,1774098631715,-501.0,0.0001474,2]
[408667715,1774098631724,-2500.0,0.00014792,2]
[408667716,1774098631734,-2500.0,0.00014792,2]
[408667717,1774098631743,-2500.0,0.00014792,2]
[408667718,1774098631752,-2500.0,0.00014792,2]
[408667719,1774098631761,-2500.0,0.00014792,2]
[408667720,1774098631771,-292.17260618,0.0001481,2]
[408667721,1774098631780,-1497.78447323,0.00014821,2]
[408667722,1774098631789,-5018.32,0.00014828,2]
[408667723,1774098631799,-300.0,0.00014873,2]
[408667724,1774098631808,-300.0,0.00014873,2]
[408667725,1774098631817,-5000.0,0.00014873,2]
[408667726,1774098631826,-281.42,0.00015068,2]
[408667727,1774098631835,-292.17260618,0.00015082,2]
[408667728,1774098631845,-1497.78447323,0.00015091,2]
[408667729,1774098631854,-292.17260618,0.00015355,2]
[408667730,1774098631863,-1497.78447323,0.00015361,2]
[408667731,1774098631873,-1371.03,0.00015507,2]
[408667732,1774098631882,-972.0,0.00015618,2]
[408667733,1774098631892,-292.17260618,0.00015627,2]
[408667735,1774098631901,-156.36296868,0.00015629,2]
[408667736,1774098631910,-1497.78447323,0.0001563,2]
[408667737,1774098631921,-979.16666667,0.00015724,2]
[408667738,1774098631931,-972.0,0.00015727,2]
[408667739,1774098631940,-1418.454,0.00015761,2]
[408667740,1774098631950,-2466.0,0.00015774,2]
[408667741,1774098631959,-926.566,0.00015774,2]
[408667742,1774098631969,-160.0,0.00015833,2]
[408667743,1774098631978,-1000.0,0.00015881,2]
[408667744,1774098631987,-25000.0,0.00015891,3]
[408667745,1774098631997,-1371.03,0.00015895,2]
[408667746,1774098632007,-307.88447647,0.00015897,2]
[408667747,1774098632017,-307.8844764,0.00015897,2]
[408667748,1774098632026,-307.8844764,0.00015898,2]
[408667749,1774098632037,-1000.0,0.00015898,2]
[408667750,1774098632046,-307.8844764,0.00015898,2]
[408667751,1774098632056,-307.8844764,0.00015899,2]
[408667752,1774098632066,-307.8844764,0.00015899,2]
[408667753,1774098632077,-307.8844764,0.000159,2]
[408667754,1774098632086,-1000.0,0.000159,2]
[408667755,1774098632097,-25000.0,0.000159,3]
[408667756,1774098632107,-12000.43360412,0.000159,3]
[408667757,1774098637663,-307.60048368,0.000159,3]
[408667771,1774098639689,-3328.0059121,0.000159,3]
[408667772,1774098639699,-1497.78447323,0.000159,2]
[408667773,1774098639708,-5000.0,0.000159,2]
[408667774,1774098639718,-292.17260618,0.000159,2]
[408667775,1774098639727,-348.1590763,0.000159,2]
[408667776,1774098639737,-307.8844764,0.000159,2]
[408667777,1774098639746,-366.4469759,0.000159,2]
[408667778,1774098639755,-153.7845791,0.000159,5]
[408667779,1774098639764,-972.0,0.00015914,2]
[408667780,1774098639773,-777.0,0.0001594,2]
[408667781,1774098639782,-252.416093,0.00015957,7]
[408667782,1774098639791,-569.27962609,0.00015973,2]
[408667783,1774098639801,-500.24017008,0.00015973,2]
[408667784,1774098639810,-500.0,0.00015973,2]
[408667785,1774098639819,-500.0,0.00015973,2]
[408667786,1774098639828,-2760.146219,0.00015997,2]
[408667787,1774098639839,-195131.4603976,0.00015997,2]
[408667788,1774098639848,-4904.1005519,0.00015997,2]
[408667789,1774098639858,-3506.4906453,0.00015997,2]
[408667790,1774098639868,-11326.5361155,0.00015997,2]
[408667791,1774098639877,-1170.1515446,0.00015997,2]
[408667792,1774098639886,-666.0,0.00015999,2]
[408667793,1774098639896,-155.51,0.00015999,2]
[408667794,1774098639906,-500.0,0.00015999,2]
[408667795,1774098639917,-301.02680297,0.00015999,2]
[408667796,1774098639926,-500.0,0.00015999,2]
[408667797,1774098639935,-321.89844904,0.00015999,2]
[408667798,1774098639946,-500.0,0.00015999,2]
[408667799,1774098639956,-545.20614214,0.00015999,2]
[408667800,1774098639966,-500.0,0.00015999,2]
[408667801,1774098639975,-1747.0,0.00016,5]
[408667802,1774098639984,-1398.0,0.00016,5]
[408667803,1774098639994,-3600058.95187973,0.00016,2]
[408667817,1774098642572,-311.80799292,0.00015774,2]
[408667818,1774098642732,-906.59200708,0.00015774,2]
[408667819,1774098642742,-3316.96260072,0.00016,2]
[408667840,1774098645406,-42446.672503,0.00016,2]
[408667841,1774098645515,-4141.63720506,0.00016,2]
[408667842,1774098645526,-9899.27835885,0.00016,2]
[408667880,1774098646558,-0.02385826,0.00016,2]
[408667883,1774098852705,-150.0,0.00012958,2]
[408667884,1774098852733,-300.0,0.00012958,2]
[408667885,1774098852803,-8950.01,0.00012959,2]
[408667886,1774098853090,-10000.01,0.00012959,2]
[408667887,1774098853198,-10000.01,0.00012959,2]
[408667888,1774098853309,-10000.01,0.00012959,2]
[408667889,1774098853415,-10000.01,0.00012959,2]
[408667890,1774098853537,-1243.9475,0.00012959,2]
[408667891,1774098853568,-7512.115,0.00012959,2]
[408667892,1774098853657,-1000.0,0.00013421,2]
[408667893,1774098853686,-2500.0,0.00013421,2]
[408667894,1774099043669,5873.1,7.3e-05,2]
[408667895,1774099043852,4126.91,7.684e-05,2]
[408667896,1774099043874,1746.19,7.684e-05,2]
[408667897,1774099044055,5873.1,8.068e-05,2]
[408667898,1774099044248,2380.72,8.452e-05,2]
[408667899,1774099044270,3492.38,8.452e-05,2]
[408667900,1774099044619,5873.1,8.837e-05,2]
[408667908,1774099631107,-226.21695932,9.221e-05,2]
[408667910,1774099763108,-5646.88304068,9.221e-05,2]
[408667911,1774099763128,-500.0,9.473e-05,2]
[408667912,1774099763151,-32473.14903932,9.49e-05,2]
[408667913,1774099764092,-14165.39495325,9.49e-05,2]
[408667914,1774099764114,-40886.66952675,9.5e-05,3]
[408667915,1774099770077,-5880.665028,9.5e-05,3]
[408667916,1774099772091,-366.03620857,9.5e-05,3]
[408667917,1774099772146,-386638.714,9.5e-05,3]
[408667921,1774099831624,-301.930276,9.425e-05,2]
[408667922,1774099831634,-501.7987997,9.473e-05,2]
[408667923,1774099831648,-500.0,9.473e-05,2]
[408667925,1774099831658,-500.24017008,9.473e-05,2]
[408667927,1774099831668,-300.0,9.499e-05,2]
[408667929,1774099831678,-300.0,9.499e-05,2]
[408667931,1774099831688,-32.5063901,9.499e-05,2]
[408667932,1774099831700,-856.65432573,9.499e-05,2]
[408667933,1774099831711,-310.83928417,9.499e-05,2]
[408667934,1774099831721,-150.0,9.499e-05,2]
[408667935,1774099831731,-300.0,9.499e-05,2]
[408667936,1774099831741,-160.88056966,9.5e-05,3]
[408667937,1774099831753,-579.76289887,9.5e-05,3]
[408667938,1774099831766,-735.86868897,9.5e-05,3]
[408667939,1774099831784,-3473.61502856,9.5e-05,3]
[408667941,1774099831804,-24825.69496148,9.5e-05,3]
[408667943,1774099831816,-513679.55239144,9.5e-05,3]
[408667944,1774099831826,-1200.0,9.6e-05,2]
[408667945,1774099831836,-5873.1,9.605e-05,2]
[408667946,1774099831845,-5873.1,9.989e-05,2]
[408667947,1774099831856,-552.04964118,0.00010021,2]
[408667949,1774099831866,-5873.1,0.00010373,2]
[408667951,1774099831876,-1680.0,0.00010449,2]
[408667953,1774099831887,-255.0,0.00010449,2]
[408667955,1774099831899,-420.0,0.00010449,2]
[408667957,1774099831909,-151.0,0.0001073,2]
[408667959,1774099831918,-151.0,0.0001073,2]
[408667962,1774099831928,-151.0,0.0001073,2]
[408667965,1774099831939,-151.0,0.0001073,2]
[408667968,1774099831948,-151.0,0.0001073,2]
[408667971,1774099831957,-151.0,0.0001073,2]
[408667973,1774099831967,-151.0,0.0001073,2]
[408667975,1774099831976,-151.0,0.0001073,2]
[408667977,1774099831985,-151.0,0.0001073,2]
[408667979,1774099831996,-151.0,0.0001073,2]
[408667982,1774099832005,-151.0,0.0001073,2]
[408667984,1774099832015,-151.0,0.0001073,2]
[408667986,1774099832024,-151.0,0.0001073,2]
[408667988,1774099832033,-18853.89245849,0.00010737,2]
[408667990,1774099832047,-5873.1,0.00010758,2]
[408667992,1774099832056,-500.0,0.000108,2]
[408667994,1774099832066,-166.42049707,0.00011099,2]
[408667996,1774099832076,-166.42049702,0.00011099,2]
[408667998,1774099832085,-166.42049702,0.000111,2]
[408668000,1774099832094,-5873.1,0.00011142,2]
[408668002,1774099832104,-1000.0,0.00011348,2]
[408668004,1774099832113,-500.0,0.0001137,2]
[408668006,1774099832123,-1777.0,0.00011494,2]
[408668008,1774099832132,-229.0,0.00011494,2]
[408668010,1774099832141,-434.0,0.00011494,2]
[408668021,1774099832348,-5873.1,0.00011526,2]
[408668022,1774099832362,-504.93522769,0.00011896,2]
[408668023,1774099832372,-166.42049702,0.000119,2]
[408668024,1774099832381,-5873.1,0.0001191,2]
[408668025,1774099832390,-5873.1,0.00012294,2]
[408668026,1774099832399,-4120.50925722,0.00012585,2]
[408668027,1774099832408,-5873.1,0.00012679,2]
[408668028,1774099832418,-233.33,0.00012684,2]
[408668029,1774099832428,-166.42049702,0.000127,2]
[408668030,1774099832437,-3346.47,0.00012838,2]
[408668031,1774099832447,-5873.1,0.00013063,2]
[408668032,1774099832456,-2107.836683,0.00013126,2]
[408668033,1774099832466,-166.66,0.00013433,2]
[408668034,1774099832475,-5873.1,0.00013447,2]
[408668035,1774099832485,-2249.43229158,0.00013472,2]
[408668036,1774099832495,-166.42049702,0.000135,2]
[408668037,1774099832504,-166.52,0.00013513,2]
[408668038,1774099832513,-165.15,0.00013522,2]
[408668039,1774099832522,-500.52,0.00013555,2]
[408668040,1774099832533,-200.0,0.00013559,2]
[408668041,1774099832543,-19408.77,0.00013629,2]
[408668042,1774099832552,-191.37,0.00013699,2]
[408668043,1774099832561,-966.08,0.000137,2]
[408668044,1774099832570,-166.66,0.00013715,2]
[408668045,1774099832580,-4520.13178542,0.00013728,2]
[408668046,1774099832589,-1228.49,0.00013778,2]
[408668047,1774099832599,-5873.1,0.00013831,2]
[408668048,1774099832609,-500.0,0.0001396,2]
[408668049,1774099832620,-166.66,0.00013998,2]
[408668050,1774099832630,-161.3,0.00014159,2]
[408668051,1774099832639,-5873.1,0.00014215,2]
[408668052,1774099832649,-166.66,0.00014281,2]
[408668053,1774099832659,-166.42049702,0.000143,2]
[408668054,1774099832668,-500.0,0.00014356,2]
[408668055,1774099832677,-500.0,0.00014356,2]
[408668056,1774099832687,-500.0,0.00014474,2]
[408668057,1774099832696,-500.0,0.00014474,2]
[408668058,1774099832706,-500.0,0.00014474,2]
[408668059,1774099832715,-500.0,0.00014474,2]
[408668060,1774099832724,-208.50828894,0.00014474,2]
[408668061,1774099832734,-254.77832291,0.000145,2]
[408668062,1774099832743,-396.65,0.00014504,2]
[408668063,1774099832756,-350.92,0.00014504,2]
[408668064,1774099832766,-999.99,0.00014504,2]
[408668065,1774099832775,-166.66,0.00014564,2]
[408668066,1774099832785,-5873.1,0.00014599,2]
[408668067,1774099832795,-2000.0,0.000146,2]
[408668068,1774099832804,-254.77832288,0.00014656,2]
[408668069,1774099832813,-254.77832288,0.00014811,2]
[408668070,1774099832823,-166.66,0.00014847,2]
[408668071,1774099832832,-165.15,0.00014874,2]
[408668072,1774099832841,-254.77832288,0.00014967,2]
[408668073,1774099832851,-191.37,0.00015068,2]
[408668074,1774099832861,-153.7845791,0.00015099,4]
[408668075,1774099832870,-254.77832288,0.00015122,2]
[408668076,1774099832881,-250.0,0.00015199,2]
[408668077,1774099832895,-500.0,0.00015199,2]
[408668078,1774099832906,-500.0,0.00015199,2]
[408668079,1774099832916,-280.93336224,0.00015199,2]
[408668080,1774099832926,-500.0,0.00015199,2]
[408668081,1774099832935,-500.0,0.00015199,2]
[408668082,1774099832944,-500.0,0.00015199,2]
[408668083,1774099832953,-500.0,0.00015199,2]
[408668084,1774099832962,-500.0,0.00015199,2]
[408668085,1774099832972,-500.0,0.00015199,2]
[408668086,1774099832981,-500.0,0.00015199,2]
[408668087,1774099832990,-500.0,0.00015199,2]
[408668088,1774099833000,-250.0,0.00015199,2]
[408668089,1774099833010,-250.0,0.00015199,2]
[408668090,1774099833019,-500.0,0.00015199,2]
[408668091,1774099833029,-500.0,0.00015199,2]
[408668092,1774099833039,-250.0,0.00015199,2]
[408668093,1774099833048,-250.0,0.00015199,2]
[408668094,1774099833058,-500.0,0.00015199,2]
[408668095,1774099833067,-500.0,0.00015199,2]
[408668096,1774099833077,-250.0,0.00015199,2]
[408668097,1774099833086,-250.0,0.00015199,2]
[408668098,1774099833095,-500.0,0.00015199,2]
[408668099,1774099833104,-500.0,0.00015199,2]
[408668100,1774099833114,-250.0,0.00015199,2]
[408668101,1774099833123,-250.0,0.00015199,2]
[408668102,1774099833137,-500.0,0.00015199,2]
[408668103,1774099833147,-500.0,0.00015199,2]
[408668104,1774099833157,-268.3661478,0.00015199,2]
[408668105,1774099833167,-250.0,0.00015199,2]
[408668106,1774099833176,-500.0,0.00015199,2]
[408668107,1774099833186,-500.0,0.00015199,2]
[408668108,1774099833195,-250.0,0.00015199,2]